bitfinex/quotes_SOLUSD_20240604
["timestamp","ask_amount","ask_price","bid_price","bid_amount"]
[1717519584054,25.0,169.8,169.75,122.1796]
[1717519584764,25.0,169.8,169.75,120.0]
[1717519585168,27.179,169.8,169.75,120.0]
[1717519585363,25.0,169.8,169.73,128.6219]
[1717519585545,25.0,169.8,169.75,120.0]
[1717519588865,25.0,169.8,169.73,122.1798]
[1717519589066,31.5488,169.8,169.73,120.0]
[1717519589379,2.1794,169.77,169.73,120.0]
[1717519589535,8.7281,169.78,169.73,120.0]
[1717519589740,6.5488,169.78,169.73,120.0]
[1717519590075,4.3586,169.78,169.69,120.0]
[1717519590248,19.99,169.76,169.67,120.0]
[1717519593274,6.1616,169.63,169.54,120.0]
[1717519593646,6.1973,169.67,169.59,120.0]
[1717519594042,6.1973,169.67,169.57,120.0]
[1717519594261,0.17,169.66,169.55,120.0]
[1717519594461,2.1813,169.62,169.55,120.0]
[1717519594848,20.16,169.66,169.54,2.1823]
[1717519595070,2.181,169.65,169.56,2.1821]
[1717519595270,2.3508,169.66,169.57,2.1819]
[1717519595453,2.3508,169.66,169.57,122.1819]
[1717519595762,2.1809,169.65,169.57,120.0]
[1717519596252,2.181,169.64,169.57,120.0]
[1717519596448,0.17,169.66,169.53,122.1824]
[1717519596654,2.1813,169.62,169.55,120.0]
[1717519596854,19.99,169.64,169.55,120.0]
[1717519597167,2.1815,169.61,169.53,120.0]
[1717519597355,2.1816,169.6,169.53,120.0]
[1717519597973,2.1814,169.61,169.52,2.1826]
[1717519598152,0.17,169.63,169.52,2.1826]
[1717519598354,2.1814,169.61,169.52,2.1826]
[1717519598547,0.17,169.63,169.53,2.1824]
[1717519598787,2.1816,169.6,169.51,122.3526]
[1717519598950,2.1816,169.6,169.52,2.1826]
[1717519599278,0.34,169.63,169.51,2.1827]
[1717519599446,0.34,169.63,169.49,120.0]
[1717519599648,2.1819,169.57,169.49,122.1829]
[1717519599973,2.1819,169.58,169.5,2.1828]
[1717519600473,2.1821,169.56,169.48,2.1831]
[1717519600654,2.1823,169.55,169.47,122.1831]
[1717519600855,2.1823,169.55,169.44,6.4287]
[1717519600856,2.1821,169.56,169.49,120.0]
[1717519601049,6.3147,169.57,169.49,120.0]
[1717519601256,8.4967,169.57,169.49,2.183]
[1717519601458,8.4967,169.57,169.49,122.183]
[1717519601656,6.3147,169.57,169.51,120.0]
[1717519601959,6.3147,169.57,169.52,2.1826]
[1717519602158,6.3147,169.57,169.51,2.1827]
[1717519602661,6.3147,169.57,169.5,2.1828]
[1717519602887,6.3147,169.57,169.51,2.1827]
[1717519603057,6.3147,169.57,169.5,2.1828]
[1717519603376,6.3147,169.57,169.49,120.0]
[1717519603673,8.4968,169.57,169.49,2.1829]
[1717519603974,8.4968,169.57,169.47,120.0]
[1717519603975,6.3147,169.57,169.47,120.0]
[1717519604158,6.3147,169.57,169.49,120.0]
[1717519604358,2.1822,169.55,169.48,2.1831]
[1717519604558,2.1821,169.56,169.48,2.1831]
[1717519604871,6.3147,169.57,169.42,255.0]
[1717519605066,2.1826,169.52,169.44,2.1835]
[1717519605453,2.1827,169.52,169.43,120.0]
[1717519605855,0.34,169.56,169.45,120.0]
[1717519606172,0.34,169.56,169.42,120.0]
[1717519606375,2.1827,169.51,169.42,120.0]
[1717519606675,2.1826,169.52,169.44,2.1836]
[1717519606858,2.1825,169.53,169.44,120.0]
[1717519607058,2.1825,169.53,169.45,2.1835]
[1717519607268,2.1828,169.51,169.44,120.0]
[1717519607467,4.3647,169.54,169.43,2.1837]
[1717519607772,4.3647,169.54,169.44,2.1836]
[1717519607773,2.1827,169.51,169.44,2.1836]
[1717519608770,16.1982,169.52,169.44,2.1836]
[1717519608964,2.1827,169.51,169.44,2.1836]
[1717519609172,18.3808,169.52,169.44,2.1836]
[1717519609474,2.1834,169.46,169.39,502.4842]
[1717519609677,2.1832,169.48,169.41,2.184]
[1717519609884,8.6978,169.49,169.42,2.1838]
[1717519610090,8.6978,169.49,169.42,2.1839]
[1717519610259,6.5148,169.49,169.43,2.1837]
[1717519610459,6.5148,169.49,169.41,120.0]
[1717519610660,6.5148,169.49,169.43,120.0]
[1717519610967,6.5148,169.49,169.44,2.1835]
[1717519611179,16.1982,169.52,169.45,2.1835]
[1717519611180,18.3808,169.52,169.45,2.1835]
[1717519611377,18.3808,169.52,169.44,2.1836]
[1717519611981,12.74121353,169.53,169.47,2.1832]
[1717519612188,6.6024,169.53,169.47,2.1832]
[1717519612372,6.6024,169.53,169.48,2.1831]
[1717519612768,6.6024,169.53,169.47,120.0]
[1717519613485,8.7849,169.53,169.44,120.0]
[1717519613684,8.7849,169.53,169.45,22.1834]
[1717519614065,2.1826,169.52,169.44,2.1836]
[1717519614287,2.1827,169.51,169.43,22.1837]
[1717519614466,2.1826,169.52,169.44,2.1836]
[1717519614666,2.1827,169.51,169.43,2.1837]
[1717519614979,2.1826,169.52,169.44,2.1836]
[1717519615368,8.9549,169.53,169.45,2.1835]
[1717519616887,2.1826,169.52,169.44,2.1836]
[1717519617590,2.1826,169.52,169.45,2.1835]
[1717519617903,8.9549,169.53,169.45,2.1835]
[1717519618096,8.9549,169.53,169.4,120.0]
[1717519618097,2.1829,169.5,169.4,120.0]
[1717519618261,2.183,169.49,169.42,2.1838]
[1717519618466,2.183,169.49,169.41,20.0]
[1717519618891,2.183,169.49,169.42,2.1838]
[1717519619073,2.1829,169.5,169.42,2.1838]
[1717519619269,2.1832,169.48,169.38,120.0]
[1717519619489,2.1832,169.48,169.4,2.1841]
[1717519619794,2.1832,169.48,169.41,2.1839]
[1717519619972,2.353,169.49,169.42,2.1838]
[1717519620172,2.353,169.49,169.41,2.1839]
[1717519620372,2.1831,169.48,169.41,2.184]
[1717519621086,2.353,169.49,169.42,2.1839]
[1717519621292,0.17,169.49,169.4,120.0]
[1717519621516,2.183,169.5,169.4,124.3681]
[1717519621670,0.17,169.52,169.44,2.1836]
[1717519621671,2.3526,169.52,169.44,2.1836]
[1717519621865,2.1827,169.51,169.44,2.1836]
[1717519622071,2.1829,169.5,169.43,2.1837]
[1717519622268,0.17,169.52,169.43,2.1837]
[1717519622580,8.7849,169.53,169.46,2.1833]
[1717519622783,12.73157257,169.53,169.46,120.0]
[1717519622994,6.6024,169.53,169.49,2.1829]
[1717519623606,18.3953,169.56,169.45,15.2842]
[1717519623607,6.2597,169.54,169.48,2.1831]
[1717519623906,6.2597,169.54,169.44,4.3672]
[1717519624202,2.1825,169.53,169.46,2.1833]
[1717519624378,8.4421,169.54,169.47,2.1832]
[1717519624571,6.2597,169.54,169.48,2.1831]
[1717519624772,6.2597,169.54,169.46,126.5502]
[1717519625081,6.2535,169.55,169.48,2.1831]
[1717519625290,6.2535,169.55,169.45,20.0]
[1717519625494,2.1824,169.54,169.46,2.1833]
[1717519625812,6.4235,169.55,169.48,2.183]
[1717519625975,2.3523,169.54,169.47,2.1832]
[1717519626179,6.4235,169.55,169.45,120.0]
[1717519626180,8.4357,169.55,169.45,120.0]
[1717519626370,6.2535,169.55,169.45,4.3669]
[1717519626577,8.4358,169.55,169.45,4.3669]
[1717519626889,6.2535,169.55,169.44,144.3671]
[1717519627088,2.1823,169.54,169.47,2.1831]
[1717519627304,8.4358,169.55,169.48,2.1831]
[1717519627602,6.2535,169.55,169.49,2.1829]
[1717519627801,16.2132,169.56,169.5,2.1828]
[1717519628476,18.3953,169.56,169.49,2.1829]
[1717519628782,2.1823,169.54,169.47,2.1832]
[1717519629191,2.1823,169.55,169.47,2.1832]
[1717519629386,2.1823,169.54,169.47,2.1832]
[1717519629900,18.5653,169.56,169.49,2.1829]
[1717519630077,18.3953,169.56,169.5,2.1828]
[1717519630278,2.3523,169.55,169.46,4.3667]
[1717519630486,2.3523,169.55,169.48,2.183]
[1717519631077,2.3523,169.55,169.49,2.183]
[1717519631371,0.17,169.55,169.49,2.183]
[1717519631573,16.2132,169.56,169.5,2.1828]
[1717519632076,22.8327,169.56,169.51,2.1827]
[1717519632278,6.6195,169.56,169.5,2.1828]
[1717519632488,2.1819,169.58,169.51,2.1827]
[1717519632796,6.6663,169.57,169.51,2.1827]
[1717519633685,6.6663,169.57,169.53,2.1824]
[1717519633885,15.6077,169.6,169.51,120.0]
[1717519634091,15.6077,169.6,169.5,8.7315]
[1717519634092,6.417,169.6,169.56,2.182]
[1717519634288,6.417,169.6,169.53,124.3648]
[1717519634493,8.29696839,169.63,169.56,2.182]
[1717519634702,2.1813,169.62,169.55,2.1822]
[1717519635178,8.29696839,169.63,169.57,2.1819]
[1717519635378,8.29696839,169.63,169.56,2.1821]
[1717519635978,22.9811,169.64,169.57,2.1819]
[1717519636381,25.1622,169.64,169.57,2.1819]
[1717519636577,22.9811,169.64,169.55,120.0]
[1717519636783,16.6383,169.64,169.55,124.3642]
[1717519637108,16.6383,169.64,169.56,2.182]
[1717519637276,2.1813,169.62,169.55,2.1822]
[1717519637695,2.1813,169.62,169.56,2.182]
[1717519637923,16.6383,169.64,169.56,2.182]
[1717519638603,2.1812,169.63,169.56,2.182]
[1717519639108,21.0005,169.64,169.52,124.3651]
[1717519639299,2.1815,169.61,169.54,2.1822]
[1717519639597,2.1819,169.58,169.51,2.1826]
[1717519639804,4.5332,169.6,169.51,2.1826]
[1717519639989,2.1819,169.58,169.51,2.1826]
[1717519640177,2.1819,169.58,169.52,2.1826]
[1717519640376,2.1819,169.58,169.51,2.1826]
[1717519640777,2.182,169.57,169.48,126.5494]
[1717519641122,2.1828,169.51,169.46,120.0]
[1717519641409,6.5467,169.55,169.44,2.1836]
[1717519641410,2.1827,169.52,169.44,2.1836]
[1717519641583,2.1829,169.5,169.42,102.1838]
[1717519641980,2.353,169.49,169.42,100.0]
[1717519642213,15.9335,169.46,169.42,100.0]
[1717519642377,18.1169,169.46,169.42,100.0]
[1717519642578,0.34,169.48,169.42,100.0]
[1717519642579,6.3706,169.43,169.42,100.0]
[1717519642999,0.34,169.48,169.42,100.0]
[1717519643000,6.5406,169.48,169.42,100.0]
[1717519643178,6.5406,169.48,169.42,102.1838]
[1717519643381,6.5406,169.48,169.42,100.0]
[1717519643595,8.7237,169.48,169.42,100.0]
[1717519643903,6.3706,169.48,169.42,100.0]
[1717519645590,6.3706,169.48,169.42,102.1838]
[1717519646096,6.3706,169.48,169.42,100.0]
[1717519646306,0.17,169.47,169.42,100.0]
[1717519646503,6.338,169.46,169.42,100.0]
[1717519647205,6.338,169.46,169.42,102.1839]
[1717519647613,8.7376,169.5,169.42,102.1839]
[1717519647801,8.7376,169.5,169.43,2.1837]
[1717519648227,6.5548,169.5,169.43,2.1837]
[1717519648395,6.5548,169.5,169.42,100.0]
[1717519648812,8.7377,169.5,169.42,100.0]
[1717519649011,8.7377,169.5,169.43,2.1837]
[1717519649299,2.183,169.49,169.42,102.1839]
[1717519649494,2.183,169.49,169.42,100.0]
[1717519649703,8.7376,169.5,169.42,100.0]
[1717519649904,2.183,169.49,169.42,100.0]
[1717519650111,2.183,169.49,169.42,102.1839]
[1717519650928,8.7377,169.5,169.43,2.1837]
[1717519651124,2.183,169.49,169.42,102.1839]
[1717519651503,8.7377,169.5,169.43,2.1837]
[1717519651708,6.5548,169.5,169.42,100.0]
[1717519651912,6.12203966,169.52,169.49,2.1829]
[1717519652107,6.1136,169.54,169.46,10.917]
[1717519652311,6.1136,169.54,169.5,2.1828]
[1717519652503,6.1136,169.54,169.46,4.3668]
[1717519652833,6.1136,169.54,169.49,2.1829]
[1717519653019,2.1822,169.55,169.48,2.1831]
[1717519654138,2.1823,169.54,169.48,2.1831]
[1717519654431,2.1825,169.53,169.46,2.1833]
[1717519654614,2.1825,169.53,169.46,1.6833]
[1717519654816,2.1824,169.54,169.47,2.1832]
[1717519655216,0.17,169.55,169.48,2.183]
[1717519655530,0.34,169.55,169.5,2.1828]
[1717519655731,0.34,169.55,169.46,4.3666]
[1717519656033,2.5221,169.56,169.49,2.1829]
[1717519656240,2.3521,169.56,169.49,2.1829]
[1717519656611,2.1822,169.55,169.48,2.183]
[1717519657624,2.3521,169.56,169.49,2.1829]
[1717519658134,2.1822,169.55,169.48,2.183]
[1717519658815,0.17,169.56,169.49,2.1829]
[1717519659021,2.3521,169.56,169.49,2.1829]
[1717519659216,2.3522,169.56,169.49,2.1829]
[1717519659429,2.1823,169.55,169.48,2.183]
[1717519659625,2.1823,169.55,169.49,2.1829]
[1717519659827,2.3521,169.56,169.49,1.6829]
[1717519660012,0.17,169.56,169.48,2.1831]
[1717519660211,0.34,169.56,169.48,2.1831]
[1717519660452,2.1823,169.55,169.49,2.183]
[1717519660740,2.1823,169.55,169.46,124.3666]
[1717519660912,2.1823,169.55,169.46,4.3666]
[1717519661111,2.1823,169.54,169.48,2.183]
[1717519661846,2.5221,169.56,169.49,2.1829]
[1717519662135,0.17,169.56,169.48,10.9155]
[1717519662432,6.1474,169.57,169.49,4.3659]
[1717519662834,6.1474,169.57,169.5,126.5486]
[1717519663019,8.2873459,169.6,169.54,2.1823]
[1717519663409,6.1057459,169.6,169.52,2.1825]
[1717519663611,6.1057459,169.6,169.45,20.0]
[1717519663612,6.1057459,169.6,169.47,4.3664]
[1717519663811,2.1823,169.55,169.49,2.1829]
[1717519664129,2.1821,169.56,169.49,2.1829]
[1717519664915,2.1822,169.55,169.49,2.1829]
[1717519665529,2.1824,169.54,169.47,2.1832]
[1717519665718,0.34,169.53,169.45,2.1835]
[1717519665918,2.1826,169.52,169.45,2.1835]
[1717519666318,2.1826,169.52,169.46,2.1834]
[1717519666753,2.1825,169.53,169.46,2.1834]
[1717519667328,2.1826,169.52,169.43,20.0]
[1717519667530,2.5227,169.51,169.44,2.1836]
[1717519667725,0.17,169.54,169.43,20.0]
[1717519667726,2.5229,169.5,169.43,2.1837]
[1717519667961,2.1829,169.5,169.43,2.1837]
[1717519668648,0.17,169.49,169.43,2.1837]
[1717519669149,0.34,169.49,169.43,2.1837]
[1717519669557,0.34,169.49,169.44,2.1835]
[1717519669747,6.3535,169.48,169.44,2.1835]
[1717519670048,0.17,169.5,169.42,220.0]
[1717519670341,21.7237,169.52,169.46,2.1833]
[1717519670723,21.7237,169.52,169.42,100.0]
[1717519671047,2.1829,169.5,169.43,2.1837]
[1717519671346,2.183,169.49,169.43,2.1837]
[1717519671545,2.183,169.49,169.42,102.1838]
[1717519671724,2.183,169.49,169.43,2.1837]
[1717519671927,2.1829,169.5,169.43,2.1837]
[1717519672748,2.1829,169.5,169.44,2.1836]
[1717519673257,0.17,169.51,169.43,2.1837]
[1717519673437,0.34,169.51,169.42,220.0]
[1717519673761,21.7237,169.52,169.45,2.1834]
[1717519674132,0.17,169.51,169.44,2.1836]
[1717519674325,21.7237,169.52,169.42,224.3677]
[1717519674326,23.9064,169.52,169.45,2.1835]
[1717519674634,2.1827,169.51,169.45,2.1835]
[1717519675037,23.9063,169.52,169.45,2.1835]
[1717519675236,2.1827,169.51,169.45,2.1835]
[1717519676267,23.9064,169.52,169.46,2.1833]
[1717519676756,23.9064,169.52,169.45,2.1834]
[1717519677532,2.1827,169.51,169.45,2.1834]
[1717519677858,2.1827,169.51,169.44,122.1835]
[1717519678361,23.9063,169.52,169.46,2.1833]
[1717519678548,23.9063,169.52,169.45,2.1834]
[1717519678752,6.1180763,169.53,169.46,120.0]
[1717519679061,8.4129,169.56,169.5,2.1827]
[1717519679254,6.2308,169.56,169.5,4.3656]
[1717519679563,6.2308,169.56,169.52,2.1825]
[1717519679735,6.2308,169.56,169.51,2.1827]
[1717519679933,6.2308,169.56,169.5,2.1828]
[1717519680132,8.4129,169.56,169.47,15.2825]
[1717519680339,8.4129,169.56,169.48,20.0]
[1717519680568,6.2308,169.56,169.49,2.1829]
[1717519680763,6.2308,169.56,169.5,2.1828]
[1717519680941,8.4129,169.56,169.5,2.1828]
[1717519681259,2.1829,169.5,169.42,220.0]
[1717519681461,2.1828,169.51,169.44,2.1836]
[1717519681633,15.4275,169.52,169.42,220.0]
[1717519681841,2.1833,169.47,169.42,100.0]
[1717519682064,6.4188,169.48,169.42,100.0]
[1717519682260,2.1833,169.47,169.42,100.0]
[1717519682763,8.7335,169.47,169.42,100.0]
[1717519683147,6.5502,169.47,169.42,102.1838]
[1717519683347,2.1828,169.5,169.44,2.1835]
[1717519683548,6.3808,169.51,169.42,224.3677]
[1717519683745,8.5636,169.51,169.45,2.1834]
[1717519684464,2.1827,169.52,169.48,120.0]
[1717519684762,2.1825,169.53,169.47,2.1831]
[1717519685160,2.1826,169.52,169.46,122.1833]
[1717519685646,6.3808,169.55,169.49,120.0]
[1717519685844,2.182,169.57,169.49,120.0]
[1717519686051,2.1819,169.58,169.51,122.1827]
[1717519686464,2.1819,169.58,169.51,120.0]
[1717519686656,6.6282,169.59,169.51,120.0]
[1717519687044,2.1822,169.56,169.49,122.1829]
[1717519687249,4.3638,169.58,169.5,2.1828]
[1717519687458,2.1821,169.56,169.5,2.1828]
[1717519687765,2.1821,169.56,169.48,20.0]
[1717519687975,2.1822,169.55,169.49,2.1829]
[1717519688348,2.1822,169.55,169.48,2.183]
[1717519688666,2.1822,169.55,169.49,2.183]
[1717519689070,6.6282,169.59,169.44,120.0]
[1717519689278,4.3648,169.54,169.45,2.1834]
[1717519689460,2.1829,169.5,169.44,122.1835]
[1717519689782,2.1824,169.54,169.48,2.1831]
[1717519689980,2.1822,169.55,169.49,2.183]
[1717519690273,2.1822,169.55,169.46,120.0]
[1717519690274,2.1828,169.51,169.45,120.0]
[1717519690453,2.183,169.5,169.44,2.1835]
[1717519690778,2.1829,169.5,169.44,2.1836]
[1717519691154,2.1829,169.5,169.45,2.1835]
[1717519691369,2.1828,169.51,169.45,2.1835]
[1717519691570,2.1825,169.53,169.47,122.1831]
[1717519691981,2.1825,169.53,169.47,2.1831]
[1717519692152,2.1826,169.52,169.46,2.1833]
[1717519693246,2.1827,169.51,169.45,122.1834]
[1717519694175,2.1827,169.51,169.46,2.1834]
[1717519694360,2.1827,169.52,169.46,2.1834]
[1717519694683,20.8088,169.58,169.49,120.0]
[1717519694882,2.1822,169.56,169.5,2.1828]
[1717519695066,2.182,169.57,169.51,2.1827]
[1717519695259,8.8099,169.59,169.52,2.1825]
[1717519695581,6.6282,169.59,169.53,122.1824]
[1717519696282,2.1816,169.6,169.53,122.1824]
[1717519696465,2.1816,169.6,169.54,2.1823]
[1717519696661,2.1816,169.6,169.55,120.0]
[1717519696880,6.0352,169.63,169.55,122.1822]
[1717519697056,2.1814,169.62,169.55,122.1822]
[1717519697467,2.1814,169.61,169.55,120.0]
[1717519697800,2.1815,169.61,169.55,120.0]
[1717519697964,2.1816,169.6,169.55,120.0]
[1717519698282,6.0352,169.63,169.55,120.0]
[1717519698283,2.1814,169.61,169.55,120.0]
[1717519698787,2.1814,169.62,169.55,122.1822]
[1717519699187,2.1816,169.6,169.53,122.1823]
[1717519699402,6.2052,169.63,169.47,124.3665]
[1717519699574,6.2052,169.63,169.46,15.2834]
[1717519699575,2.1821,169.56,169.49,122.1829]
[1717519699967,2.182,169.57,169.51,120.0]
[1717519700175,2.182,169.57,169.51,122.1827]
[1717519700575,2.1819,169.58,169.51,122.1827]
[1717519700798,2.182,169.57,169.51,122.1827]
[1717519701290,2.1818,169.58,169.51,122.1827]
[1717519701681,4.3629,169.61,169.52,2.1825]
[1717519701870,2.1818,169.58,169.52,2.1825]
[1717519702290,2.182,169.57,169.51,2.1827]
[1717519702786,16.9242,169.62,169.46,120.0]
[1717519702986,0.34,169.56,169.48,2.1831]
[1717519703281,2.1824,169.54,169.48,2.1831]
[1717519703491,2.1825,169.53,169.47,2.1832]
[1717519703867,2.1823,169.55,169.48,122.1831]
[1717519704178,2.1822,169.55,169.49,122.1829]
[1717519704484,2.1821,169.56,169.49,120.0]
[1717519704662,2.1821,169.56,169.5,2.1828]
[1717519705269,2.182,169.57,169.51,2.1827]
[1717519705692,2.182,169.57,169.51,122.1827]
[1717519706078,2.1821,169.56,169.51,120.0]
[1717519707295,2.182,169.57,169.51,122.1827]
[1717519707594,6.5448,169.6,169.51,120.0]
[1717519707889,2.1819,169.57,169.51,122.1827]
[1717519708283,8.7275,169.58,169.51,120.0]
[1717519708794,2.1821,169.56,169.51,120.0]
[1717519709571,8.7275,169.58,169.49,120.0]
[1717519709572,20.05,169.58,169.49,120.0]
[1717519709797,4.3645,169.55,169.45,120.0]
[1717519709997,2.1825,169.53,169.47,2.1832]
[1717519710499,2.1824,169.54,169.48,122.1831]
[1717519710794,2.1824,169.54,169.49,2.183]
[1717519711105,2.1823,169.55,169.49,2.183]
[1717519711269,2.1823,169.54,169.48,2.183]
[1717519711470,2.1823,169.54,169.48,122.183]
[1717519712198,2.1825,169.53,169.47,2.1832]
[1717519712396,2.1824,169.54,169.48,2.1831]
[1717519712986,2.1824,169.54,169.47,2.1832]
[1717519713301,2.1824,169.54,169.48,122.1831]
[1717519713497,22.2319,169.58,169.52,2.1826]
[1717519713672,20.05,169.58,169.5,120.0]
[1717519713872,2.1822,169.56,169.5,122.1828]
[1717519714617,26.17177233,169.61,169.5,120.0]
[1717519714899,4.3635,169.59,169.5,2.1828]
[1717519715066,2.1821,169.56,169.51,120.0]
[1717519715875,2.182,169.57,169.51,122.1827]
[1717519716484,2.182,169.57,169.51,120.0]
[1717519716868,2.182,169.57,169.51,122.1827]
[1717519717269,2.1821,169.56,169.51,120.0]
[1717519717471,2.1823,169.55,169.49,120.0]
[1717519717699,2.1823,169.55,169.49,122.1829]
[1717519718493,2.1824,169.54,169.49,120.0]
[1717519718684,2.1824,169.54,169.48,2.183]
[1717519718885,2.1826,169.53,169.47,2.1832]
[1717519719485,2.1824,169.54,169.48,2.1831]
[1717519719699,2.1823,169.55,169.49,2.1829]
[1717519719893,30.9596,169.58,169.5,122.1828]
[1717519719894,2.1821,169.56,169.5,122.1828]
[1717519720094,2.1822,169.55,169.49,2.1829]
[1717519721220,2.1824,169.54,169.48,2.183]
[1717519721884,2.1825,169.53,169.48,2.183]
[1717519722097,2.1826,169.52,169.47,2.1832]
[1717519722310,2.1825,169.53,169.47,2.1832]
[1717519723209,4.3653,169.52,169.43,6.86982012]
[1717519723385,2.1829,169.5,169.44,2.1835]
[1717519723590,2.183,169.49,169.44,2.1835]
[1717519723814,2.1829,169.5,169.44,2.1835]
[1717519724002,22.1237,169.51,169.42,100.0]
[1717519724194,2.1833,169.47,169.42,100.0]
[1717519724603,2.1833,169.47,169.42,102.1839]
[1717519724811,2.1834,169.46,169.42,100.0]
[1717519725194,2.1833,169.47,169.42,100.0]
[1717519725390,2.1834,169.46,169.42,100.0]
[1717519725613,2.1833,169.47,169.42,100.0]
[1717519726288,2.1834,169.46,169.42,100.0]
[1717519726697,2.1833,169.47,169.42,100.0]
[1717519727426,8.7428,169.47,169.42,100.0]
[1717519728188,6.558,169.48,169.42,100.0]
[1717519728394,2.1837,169.44,169.42,100.0]
[1717519728588,0.17,169.46,169.42,100.0]
[1717519728589,6.6513,169.46,169.42,100.0]
[1717519728826,6.4813,169.46,169.42,100.0]
[1717519728998,2.1836,169.45,169.42,100.0]
[1717519729199,8.6647,169.46,169.42,100.0]
[1717519729918,2.1835,169.45,169.42,100.0]
[1717519731325,2.1836,169.44,169.42,100.0]
[1717519731511,2.1836,169.45,169.42,100.0]
[1717519732718,2.1834,169.46,169.42,100.0]
[1717519733008,2.1833,169.47,169.42,100.0]
[1717519733433,30.54433837,169.49,169.42,100.0]
[1717519733434,2.1834,169.46,169.42,100.0]
[1717519733619,2.1833,169.47,169.42,100.0]
[1717519733920,30.9652,169.49,169.42,100.0]
[1717519733921,2.1834,169.46,169.42,100.0]
[1717519735851,2.1835,169.45,169.42,100.0]
[1717519736939,2.1834,169.46,169.42,100.0]
[1717519737135,2.1835,169.45,169.42,100.0]
[1717519740339,2.1836,169.44,169.42,100.0]
[1717519740831,2.1835,169.45,169.42,100.0]
[1717519741238,2.1834,169.46,169.42,100.0]
[1717519742936,2.1831,169.48,169.43,128.4757]
[1717519743241,2.1831,169.49,169.43,8.4757]
[1717519743545,2.1831,169.48,169.43,6.292]
[1717519743735,2.1831,169.48,169.42,100.0]
[1717519743922,2.183,169.49,169.43,122.1837]
[1717519744617,2.183,169.49,169.44,2.1836]
[1717519745124,2.1831,169.48,169.42,100.0]
[1717519745323,2.1831,169.48,169.42,102.1838]
[1717519745643,2.1831,169.48,169.43,2.1837]
[1717519746035,2.1831,169.48,169.42,102.1838]
[1717519746336,2.1831,169.48,169.43,2.1837]
[1717519746839,2.1831,169.48,169.42,102.1838]
[1717519747616,2.1832,169.47,169.42,102.1838]
[1717519747821,2.1832,169.47,169.42,100.0]
[1717519748015,2.1832,169.47,169.42,102.1839]
[1717519748430,2.1832,169.48,169.42,102.1839]
[1717519748643,2.1832,169.48,169.43,2.1837]
[1717519748821,20.05,169.5,169.43,2.1837]
[1717519749143,2.353,169.49,169.43,2.1837]
[1717519749343,2.1831,169.48,169.43,2.1837]
[1717519749524,2.183,169.49,169.44,2.1835]
[1717519749932,6.69,169.46,169.44,2.1835]
[1717519750338,6.69,169.46,169.43,2.1837]
[1717519750537,6.69,169.46,169.44,2.1836]
[1717519750839,6.69,169.46,169.42,102.1838]
[1717519751048,6.69,169.45,169.42,102.1838]
[1717519751422,2.1832,169.47,169.42,102.1838]
[1717519751423,6.69,169.43,169.42,102.1839]
[1717519751617,6.69,169.44,169.42,100.0]